fUST/lending_fUST_20251109
["ID","MTS","AMOUNT","RATE_DAILY","PERIOD"]
[393416679,1762630248304,-1500.0,0.00022568,2]
[393416680,1762630248314,-500.0,0.00022578,2]
[393416681,1762630248323,-160.0,0.00022854,2]
[393416682,1762630248337,-580.0,0.00022931,2]
[393416683,1762630248346,-500.0,0.00022972,2]
[393416684,1762630248360,-500.0,0.00022973,2]
[393416685,1762630248370,-599.47892329,0.00022973,2]
[393416686,1762630248379,-500.0,0.00022973,2]
[393416687,1762630248389,-501.82660943,0.00022973,2]
[393416688,1762630248398,-500.0,0.00022989,2]
[393416689,1762630248407,-374.51161086,0.00022989,2]
[393416690,1762630248416,-2979.0,0.00023,2]
[393416691,1762630248427,-499.028427,0.00023068,2]
[393416692,1762630248436,-1037.46796234,0.00023068,2]
[393416693,1762630248446,-1500.0,0.00023068,2]
[393416694,1762630248456,-1500.0,0.00023068,2]
[393416695,1762630248464,-1123.77497345,0.00023068,2]
[393416696,1762630248473,-1530.88061363,0.00023068,2]
[393416697,1762630248483,-501.12742325,0.00023068,2]
[393416698,1762630248492,-501.89871753,0.00023068,2]
[393416699,1762630248501,-1000.0,0.00023068,2]
[393416700,1762630248510,-616.39857661,0.00023068,2]
[393416701,1762630248520,-1500.0,0.00023068,2]
[393416702,1762630248529,-1500.0,0.00023068,2]
[393416703,1762630248539,-1500.0,0.00023068,2]
[393416704,1762630248557,-921.56991186,0.00023068,2]
[393416705,1762630248567,-503.80245893,0.00023068,2]
[393416706,1762630248577,-718.45887154,0.00023068,2]
[393416707,1762630248586,-506.76636232,0.00023068,2]
[393416708,1762630248597,-1006.55581394,0.00023105,2]
[393416709,1762630248608,-1500.0,0.00023105,2]
[393416710,1762630248618,-500.0,0.00023111,2]
[393416711,1762630248627,-304.23220386,0.00023111,2]
[393416712,1762630248637,-500.0,0.00023111,2]
[393416713,1762630248646,-343.73338983,0.00023111,2]
[393416714,1762630248655,-500.0,0.00023111,2]
[393416715,1762630248664,-595.92,0.00023111,2]
[393416716,1762630248674,-57264.756114,0.00023112,2]
[393416717,1762630248684,-15628.5385304,0.00023112,2]
[393416718,1762630248695,-3714.5509455,0.00023112,2]
[393416719,1762630248705,-3045.0652888,0.00023112,2]
[393416720,1762630248715,-2000.0,0.00023116,2]
[393416721,1762630248725,-500.0,0.00023173,2]
[393416722,1762630248735,-500.0,0.00023173,2]
[393416723,1762630248744,-503.11331673,0.00023173,2]
[393416724,1762630248754,-500.0,0.00023173,2]
[393416725,1762630248763,-500.0,0.00023173,2]
[393416726,1762630248772,-500.0,0.00023173,2]
[393416727,1762630248782,-577.2059856,0.00023173,2]
[393416728,1762630248791,-500.0,0.00023173,2]
[393416729,1762630248800,-501.65620951,0.00023173,2]
[393416730,1762630248810,-501.85812143,0.00023173,2]
[393416731,1762630248819,-500.0,0.00023173,2]
[393416732,1762630248829,-290.87263898,0.00023173,2]
[393416733,1762630248839,-150.0,0.00023173,2]
[393416734,1762630248849,-504.7902231,0.00023173,2]
[393416735,1762630248858,-500.0,0.00023173,2]
[393416736,1762630248868,-500.0,0.00023173,2]
[393416737,1762630248878,-500.0,0.00023173,2]
[393416738,1762630248887,-500.0,0.00023173,2]
[393416739,1762630248896,-501.28912964,0.00023173,2]
[393416740,1762630248906,-422.41052074,0.00023281,2]
[393416741,1762630248916,-10692.42788985,0.00023456,2]
[393416742,1762630248926,-1000.0,0.00023521,2]
[393416743,1762630248936,-500.0,0.00023616,2]
[393416744,1762630248945,-2000.0,0.00023616,2]
[393416745,1762630248954,-508.91431809,0.00023616,2]
[393416746,1762630248964,-2000.0,0.00023616,2]
[393416747,1762630248974,-500.0,0.00023616,2]
[393416748,1762630248983,-269.3991758,0.00023642,2]
[393416749,1762630248993,-822.29606492,0.00023664,2]
[393416750,1762630249003,-1000.0,0.00023721,2]
[393416751,1762630249012,-1000.0,0.00023721,2]
[393416752,1762630249022,-1000.0,0.00023721,2]
[393416753,1762630249032,-218.24908621,0.00023721,2]
[393416754,1762630249041,-669.43231597,0.00023721,2]
[393416755,1762630249051,-502.56255375,0.00023721,2]
[393416756,1762630249060,-1004.77391435,0.00023721,2]
[393416757,1762630249070,-300.0,0.00023721,2]
[393416758,1762630249079,-1003.12894742,0.00023721,2]
[393416759,1762630249089,-1003.01551315,0.00023721,2]
[393416760,1762630249098,-151.0,0.000239,8]
[393416761,1762630249108,-231.0,0.00024,2]
[393416762,1762630249117,-500.0,0.00024068,2]
[393416763,1762630249127,-4394.0,0.00024122,2]
[393416764,1762630249136,-2500.0,0.00024164,2]
[393416765,1762630249145,-2500.0,0.00024164,2]
[393416766,1762630249155,-627.0,0.000242,2]
[393416767,1762630249164,-415.147,0.000242,2]
[393416768,1762630249172,-151.0,0.000242,10]
[393416769,1762630249183,-505.8823257,0.00024268,2]
[393416770,1762630249192,-1640.58707186,0.00024268,2]
[393416771,1762630249202,-505.02179154,0.00024268,2]
[393416772,1762630249211,-151.06327853,0.00024268,2]
[393416773,1762630249220,-1344.66633696,0.0002431,2]
[393416774,1762630249229,-152.74,0.000244,7]
[393416775,1762630249239,-608.93,0.000244,7]
[393416776,1762630249248,-28223.07339519,0.00024545,2]
[393416777,1762630249258,-151.808597,0.00024545,7]
[393416778,1762630249267,-151.0,0.00024545,2]
[393416779,1762630249276,-151.0,0.00024545,7]
[393416780,1762630249286,-500.0,0.00024573,2]
[393416781,1762630249295,-159.00300853,0.00024573,2]
[393416782,1762630249304,-151.0,0.000246,8]
[393416783,1762630249313,-151.0,0.000246,10]
[393416784,1762630249323,-422.83293126,0.00024688,2]
[393416785,1762630249332,-3000.0,0.00024712,2]
[393416786,1762630249342,-3000.0,0.00024712,2]
[393416787,1762630249356,-313.0,0.0002475,2]
[393416788,1762630249365,-5698.13203564,0.000248,2]
[393416789,1762630249375,-436.86238731,0.00024826,2]
[393416790,1762630249389,-528.40473007,0.00024826,2]
[393416791,1762630249400,-206.94427861,0.00024826,2]
[393416792,1762630249409,-372.49970149,0.00024826,2]
[393416793,1762630249419,-470.8512847,0.00024826,2]
[393416794,1762630249430,-847.53231247,0.00024826,2]
[393416795,1762630249439,-1506.72411106,0.00024826,2]
[393416796,1762630249449,-627.45634162,0.00024826,2]
[393416797,1762630249459,-1129.42141492,0.00024826,2]
[393416798,1762630249468,-2007.86029318,0.00024826,2]
[393416799,1762630249478,-3137.2817081,0.00024826,2]
[393416800,1762630249488,-627.22101395,0.00024826,2]
[393416801,1762630249499,-1128.99782511,0.00024826,2]
[393416802,1762630249511,-662.22169154,0.00024829,2]
[393416803,1762630249520,-307.22192023,0.00024899,2]
[393416804,1762630249530,-371.832181,0.000249,2]
[393416805,1762630249539,-371.832181,0.000249,2]
[393416806,1762630249548,-371.832181,0.000249,2]
[393416807,1762630249558,-371.832181,0.000249,2]
[393416808,1762630249567,-239019.03265367,0.000249,2]
[393416809,1762630249582,-768.28,0.000249,2]
[393416811,1762630454345,5000.0,0.00019616,4]
[393416812,1762630477561,5000.0,0.00019616,4]
[393416813,1762630679842,208.03,0.00015984,2]
[393416814,1762630695379,5000.0,0.0001765,2]
[393416815,1762630717915,5000.0,0.0001765,2]
[393416816,1762630740924,5000.0,0.0001765,2]
[393416817,1762630764134,5000.0,0.0001765,2]
[393416819,1762630786404,5000.0,0.0001765,2]
[393416820,1762630810198,5000.0,0.0001765,2]
[393416821,1762630832364,4011.36759644,0.0001765,2]
[393416822,1762631025807,5000.0,0.00017501,2]
[393416824,1762631234860,375.268994,0.00013699,2]
[393416886,1762631436229,5000.0,0.00017501,2]
[393416910,1762631438370,-150.0,0.0001782,2]
[393416912,1762631438381,-177.0,0.0001982,2]
[393416914,1762631438391,-375.268994,0.00020187,2]
[393416916,1762631438400,-204.0,0.0002182,2]
[393416919,1762631438410,-1200.0,0.00023041,2]
[393416921,1762631438419,-1478.617325,0.00023042,2]
[393416922,1762631438429,-300.0,0.00023372,2]
[393416924,1762631438438,-231.0,0.00023372,2]
[393416927,1762631438449,-300.0,0.00023372,2]
[393416928,1762631438459,-7546.59926262,0.00023373,2]
[393416931,1762631438469,-1089.36771698,0.00023411,2]
[393416933,1762631438479,-500.0,0.00023411,2]
[393416935,1762631438488,-500.0,0.00023411,2]
[393416936,1762631438498,-500.0,0.00023411,2]
[393416938,1762631438507,-500.0,0.00023411,2]
[393416940,1762631438517,-500.0,0.00023411,2]
[393416942,1762631438527,-500.0,0.00023411,2]
[393416944,1762631438537,-500.0,0.00023411,2]
[393416946,1762631438546,-217.95475558,0.00023411,2]
[393416949,1762631438557,-500.0,0.00023411,2]
[393416951,1762631438568,-500.0,0.00023411,2]
[393416953,1762631438578,-288.39492674,0.00023411,2]
[393416955,1762631438588,-500.0,0.00023411,2]
[393416957,1762631438597,-500.0,0.00023411,2]
[393416959,1762631438607,-500.0,0.00023411,2]
[393416961,1762631438616,-517.85956899,0.00023411,2]
[393416963,1762631438626,-500.0,0.00023411,2]
[393416965,1762631438636,-500.0,0.00023411,2]
[393416967,1762631438645,-496.29746604,0.00023411,2]
[393416969,1762631438655,-500.0,0.00023411,2]
[393416971,1762631438664,-500.0,0.00023411,2]
[393416973,1762631438674,-500.0,0.00023411,2]
[393416974,1762631438684,-500.0,0.00023411,2]
[393416976,1762631438693,-500.0,0.00023411,2]
[393416978,1762631438702,-500.0,0.00023411,2]
[393416980,1762631438712,-457.35873079,0.00023411,2]
[393416982,1762631438723,-500.0,0.00023411,2]
[393416984,1762631438732,-500.0,0.00023411,2]
[393416986,1762631438742,-252.8739505,0.00023411,2]
[393416989,1762631438753,-500.0,0.00023411,2]
[393416991,1762631438766,-500.0,0.00023411,2]
[393416993,1762631438776,-500.0,0.00023411,2]
[393416994,1762631438786,-500.0,0.00023411,2]
[393416997,1762631438797,-445.68013569,0.00023411,2]
[393416999,1762631438807,-500.0,0.00023411,2]
[393417001,1762631438817,-500.0,0.00023411,2]
[393417003,1762631438827,-500.0,0.00023411,2]
[393417005,1762631438839,-500.0,0.00023411,2]
[393417007,1762631438850,-500.0,0.00023411,2]
[393417009,1762631438860,-500.0,0.00023411,2]
[393417011,1762631438870,-500.0,0.00023411,2]
[393417013,1762631438881,-500.0,0.00023411,2]
[393417015,1762631438890,-356.20839081,0.00023411,2]
[393417017,1762631438901,-500.0,0.00023411,2]
[393417019,1762631438911,-500.0,0.00023411,2]
[393417021,1762631438920,-500.0,0.00023411,2]
[393417023,1762631438930,-500.0,0.00023411,2]
[393417024,1762631438939,-500.0,0.00023411,2]
[393417026,1762631438949,-500.0,0.00023411,2]
[393417028,1762631438959,-500.0,0.00023411,2]
[393417029,1762631438968,-500.0,0.00023411,2]
[393417031,1762631438979,-500.0,0.00023411,2]
[393417032,1762631438989,-500.0,0.00023411,2]
[393417033,1762631439000,-500.0,0.00023411,2]
[393417034,1762631439010,-250.0,0.00023412,2]
[393417035,1762631439021,-38680.59932323,0.00023412,2]
[393417036,1762631439053,-2581.89198725,0.00023412,2]
[393417040,1762631440584,-6853.47799041,0.00023412,2]
[393417041,1762631440597,-500.0,0.00023473,2]
[393417042,1762631440610,-215.58398351,0.00023642,2]
[393417043,1762631440620,-231.0,0.0002382,2]
[393417044,1762631440631,-500.0,0.00024096,2]
[393417045,1762631440641,-500.0,0.00024096,2]
[393417046,1762631440654,-500.0,0.00024097,2]
[393417047,1762631440666,-502.10980136,0.000241,2]
[393417048,1762631440677,-500.0,0.00024197,2]
[393417049,1762631440690,-500.0,0.00024197,2]
[393417050,1762631440701,-500.0,0.00024197,2]
[393417051,1762631440714,-2163.0,0.000242,2]
[393417052,1762631440726,-412.0,0.000242,2]
[393417053,1762631440737,-1028.82,0.0002449,10]
[393417054,1762631440749,-857.35,0.0002449,10]
[393417057,1762631440764,-244.27204151,0.00024499,2]
[393417059,1762631440776,-10201.35352789,0.000245,2]
[393417063,1762631443697,-114.33853356,0.000245,2]
[393417109,1762632479589,113000.0,0.00032877,120]
[393417124,1762632632655,-2405.38358952,0.00022992,2]
[393417194,1762632638611,-444.49869068,0.00022992,2]
[393417195,1762632638621,-2007.10724464,0.00023198,2]
[393417196,1762632638630,-3136.10506974,0.00023198,2]
[393417197,1762632638640,-150.0,0.0002338,2]
[393417198,1762632638650,-399.81834234,0.00023432,2]
[393417199,1762632638660,-300.0,0.00023592,2]
[393417200,1762632638669,-1200.0,0.00023592,2]
[393417201,1762632638678,-300.0,0.00023593,2]
[393417202,1762632638688,-300.0,0.00023593,2]
[393417203,1762632638697,-300.0,0.00023593,2]
[393417204,1762632638707,-300.0,0.00023593,2]
[393417205,1762632638717,-1613.77856941,0.00023596,2]
[393417206,1762632638738,-1398.68211352,0.00023596,2]
[393417207,1762632638750,-6241.55118997,0.00023596,2]
[393417208,1762632638760,-1165.3698228,0.00023635,2]
[393417209,1762632638769,-928.63692809,0.00023635,2]
[393417227,1762632640732,-383.16140013,0.00023635,2]
[393417230,1762632640788,-5524.28655272,0.00023635,2]
[393417231,1762632640797,-2354.25642352,0.00024164,2]
[393417232,1762632640807,-3390.12924987,0.00024164,2]
[393417233,1762632640816,-714.46,0.0002449,10]
[393417234,1762632640826,-595.39,0.0002449,10]
[393417235,1762632640835,-500.0,0.00024499,2]
[393417236,1762632640844,-500.0,0.00024499,2]
[393417237,1762632640853,-500.0,0.00024499,2]
[393417238,1762632640863,-168.28760159,0.00024499,2]
[393417239,1762632640872,-500.0,0.00024499,2]
[393417240,1762632640881,-493.96445952,0.00024499,2]
[393417241,1762632640890,-329.73111671,0.00024499,2]
[393417242,1762632640899,-343.52094564,0.00024499,2]
[393417243,1762632640908,-500.0,0.00024499,2]
[393417244,1762632640917,-459.67508813,0.00024499,2]
[393417245,1762632640927,-500.0,0.00024499,2]
[393417246,1762632640935,-500.0,0.00024499,2]
[393417247,1762632640945,-500.0,0.00024499,2]
[393417248,1762632640954,-170.99042906,0.00024499,2]
[393417249,1762632640963,-161.92874787,0.00024499,2]
[393417250,1762632640972,-473.32508409,0.00024499,2]
[393417251,1762632640982,-30836.52110428,0.000245,2]
[393417289,1762632647120,-496.15,0.0002449,10]
[393417291,1762632647131,-196.10170984,0.000245,2]
[393417292,1762632647337,-295.13886484,0.000245,2]
[393417304,1762633591836,160.0,0.00029432,56]
[393417362,1762633831819,-5000.0,0.00021777,4]
[393417364,1762633831829,-300.0,0.00021997,2]
[393417365,1762633831838,-300.0,0.00021997,2]
[393417367,1762633831847,-1200.0,0.00021997,2]
[393417369,1762633831856,-385.5370274,0.00021998,2]
[393417370,1762633831867,-607.51500014,0.00021998,2]
[393417371,1762633837732,-2698.36216977,0.00021559,4]
[393417372,1762633837745,-2301.63783023,0.00021559,4]
[393417373,1762633837754,-500.0,0.00021997,2]
[393417374,1762633837763,-500.0,0.00021997,2]
[393417375,1762633837773,-500.0,0.00021997,2]
[393417376,1762633837782,-500.0,0.00021997,2]
[393417377,1762633837791,-500.0,0.00021997,2]
[393417378,1762633837800,-500.0,0.00021997,2]
[393417380,1762633837810,-500.0,0.00021997,2]
[393417382,1762633837819,-500.0,0.00021997,2]
[393417383,1762633837829,-500.0,0.00021997,2]
[393417385,1762633837839,-302.9959569,0.00021997,2]
[393417387,1762633837848,-500.0,0.00021997,2]
[393417389,1762633837857,-500.0,0.00021997,2]
[393417391,1762633837867,-500.0,0.00021997,2]
[393417392,1762633837876,-500.0,0.00021997,2]
[393417393,1762633837886,-500.0,0.00021997,2]
[393417394,1762633837895,-500.0,0.00021997,2]
[393417395,1762633837905,-500.0,0.00021997,2]
[393417396,1762633837914,-500.0,0.00021997,2]
[393417397,1762633837924,-500.0,0.00021997,2]
[393417398,1762633837933,-500.0,0.00021997,2]
[393417399,1762633837942,-500.0,0.00021997,2]
[393417400,1762633837952,-500.0,0.00021997,2]
[393417401,1762633837962,-366.6050172,0.00021997,2]
[393417402,1762633837972,-500.0,0.00021997,2]
[393417403,1762633837982,-500.0,0.00021997,2]
[393417404,1762633837992,-500.0,0.00021997,2]
[393417405,1762633838002,-500.0,0.00021997,2]
[393417406,1762633838012,-500.0,0.00021997,2]
[393417407,1762633838021,-500.0,0.00021997,2]
[393417408,1762633838032,-500.0,0.00021997,2]
[393417409,1762633838042,-581.90289126,0.00021997,2]
[393417410,1762633838053,-500.0,0.00021997,2]
[393417411,1762633838063,-6505.19570945,0.00021998,2]
[393417412,1762633838075,-25159.64031261,0.00021998,2]
[393417413,1762633838086,-1000.0,0.00021998,2]
[393417414,1762633838098,-287.48678427,0.00021998,2]
[393417415,1762633838133,-49.57375071,0.00021998,2]
[393417416,1762633838145,-3023.880349,0.00021998,2]
[393417417,1762633839857,-26017.94853438,0.00021998,2]
[393417418,1762633839867,-288.10541092,0.00022059,2]
[393417419,1762633839876,-1328.70902743,0.00022382,2]
[393417420,1762633839887,-150.0,0.00022711,2]
[393417421,1762633839899,-190.36688303,0.000228,2]
[393417422,1762633839909,-1328.70902741,0.00022987,2]
[393417423,1762633839919,-2015.61280527,0.0002322,2]
[393417424,1762633839928,-1985.73591026,0.0002322,2]
[393417425,1762633839937,-173.627836,0.00023241,2]
[393417426,1762633839948,-367.38342606,0.000235,2]
[393417427,1762633839959,-999.0,0.00023575,2]
[393417428,1762633839968,-1328.70902741,0.00023591,2]
[393417429,1762633839977,-287.49320293,0.00023642,2]
[393417430,1762633839987,-420.0,0.00023903,2]
[393417431,1762633839997,-315.76,0.0002398,10]
[393417432,1762633840007,-602.14,0.0002398,10]
[393417433,1762633840017,-501.79,0.0002398,10]
[393417434,1762633840028,-418.15,0.0002398,10]
[393417435,1762633840039,-13057.54734702,0.0002399,2]
[393417436,1762633840048,-2862.6974876,0.0002414,2]
[393417437,1762633840057,-4584.03742861,0.0002414,2]
[393417438,1762633840069,-11044.50110159,0.0002414,2]
[393417439,1762633840078,-1328.70902741,0.00024196,2]
[393417440,1762633840087,-1338.99055865,0.00024222,2]
[393417441,1762633840096,-233.12979431,0.00024317,2]
[393417442,1762633840105,-163.19085601,0.00024317,2]
[393417443,1762633840114,-10377.36406984,0.00024318,2]
[393417448,1762633842948,-569.8539678,0.00024318,2]
[393417449,1762633842961,-5783.79519527,0.00024318,2]
[393417459,1762633846182,-1242.48199279,0.00024318,2]
[393417460,1762633846398,-700.00000077,0.00024318,2]
[393417464,1762634171139,337.742094,0.00013699,2]
[393417467,1762634283840,255.65,0.00015485,2]
[393417468,1762634952132,-234.76876499,0.00019588,2]
[393417518,1762635032032,-618.13832791,0.00019392,2]
[393417520,1762635032043,-508.65546831,0.00019392,2]
[393417522,1762635032055,-906.36777751,0.00019392,2]
[393417524,1762635032090,-492.59946567,0.00019392,2]
[393417727,1762635037958,-504.79902055,0.00019392,2]
[393417747,1762635040137,-1969.43994005,0.00019392,2]
[393417748,1762635040147,-150.0,0.00019762,2]
[393417749,1762635040156,-300.0,0.00019906,2]
[393417750,1762635040165,-1200.0,0.00019906,2]
[393417751,1762635040174,-300.0,0.00019907,2]
[393417752,1762635040184,-300.0,0.00019907,2]
[393417753,1762635040193,-300.0,0.00019907,2]
[393417754,1762635040201,-300.0,0.00019907,2]
[393417755,1762635040210,-362.60650004,0.00019908,2]
[393417756,1762635040219,-2502.56898716,0.00019908,2]
[393417758,1762635040228,-31126.00201466,0.00020187,2]
[393417773,1762635046297,-396.23628598,0.00019662,2]
[393417774,1762635046306,-3361.23581283,0.00020187,2]
[393417775,1762635046353,-505.02073508,0.00020187,2]
[393417791,1762635640103,5000.0,0.00017501,2]
[393417793,1762635662493,5000.0,0.00017501,2]
[393417794,1762635685231,5000.0,0.00017501,2]
[393417805,1762635708058,5000.0,0.00017501,2]
[393417807,1762635722657,150.88265831,0.00017125,2]
[393417808,1762635730356,5000.0,0.00017501,2]
[393417809,1762635753169,5000.0,0.00017501,2]
[393417810,1762635775997,5000.0,0.00017501,2]
[393417812,1762635798779,5000.0,0.00017501,2]
[393417813,1762635821636,5000.0,0.00017501,2]
[393417814,1762635842786,150.88265831,0.00017125,2]
[393417816,1762636041947,5000.0,0.00017501,2]
[393417818,1762636083711,178.95,0.00015485,2]
[393417857,1762636232112,-5000.0,0.00017841,2]
[393417860,1762636232125,-150.0,0.00017931,2]
[393417862,1762636232135,-160.0,0.00018344,2]
[393417864,1762636232144,-1200.0,0.00019913,2]
[393417866,1762636232154,-2703.52211972,0.00019914,2]
[393417868,1762636232164,-177.0,0.00019931,2]
[393417870,1762636232174,-300.0,0.00020104,2]
[393417872,1762636232183,-300.0,0.00020104,2]
[393417874,1762636232192,-1000.0,0.00020105,2]
[393417876,1762636232202,-337.742094,0.00020187,2]
[393417878,1762636232215,-265.74180549,0.00021773,2]
[393417880,1762636232225,-1200.0,0.0002186,2]
[393417882,1762636232234,-10535.82147131,0.00021861,2]
[393417885,1762636232246,-20696.8,0.00021861,2]
[393417889,1762636232261,-2200.10207672,0.00021861,2]
[393417896,1762636232289,-500.0,0.0002186,2]
[393417898,1762636232299,-500.0,0.0002186,2]
[393417901,1762636232309,-500.0,0.0002186,2]
[393417904,1762636232318,-500.0,0.0002186,2]
[393417907,1762636232327,-16567.27645197,0.00021861,2]
[393417910,1762636232342,-501.09366896,0.00021873,2]
[393417915,1762636232351,-500.0,0.00021873,2]
[393417918,1762636232361,-500.0,0.00021873,2]
[393417921,1762636232370,-204.0,0.00021931,2]
[393417923,1762636232380,-500.0,0.00021973,2]
[393417925,1762636232389,-412.86149981,0.00021973,2]
[393417927,1762636232398,-155.246162,0.00022197,7]
[393417929,1762636232409,-739.308663,0.00022298,2]
[393417931,1762636232419,-3350.8050059,0.00022374,2]
[393417933,1762636232428,-297.465745,0.00022374,2]
[393417935,1762636232438,-297.465745,0.00022374,2]
[393417937,1762636232446,-297.465745,0.00022374,2]
[393417939,1762636232456,-297.465745,0.00022374,2]
[393417941,1762636232465,-503.61024689,0.00022492,2]
[393417943,1762636232475,-265.74180548,0.0002256,2]
[393417945,1762636232484,-151.0,0.00022978,2]
[393417947,1762636232494,-151.0,0.00022978,2]
[393417949,1762636232503,-151.0,0.00022978,2]
[393417951,1762636232512,-151.0,0.00022978,2]
[393417953,1762636232522,-151.66255476,0.00022978,2]
[393417955,1762636232530,-195.53526998,0.00022978,2]
[393417957,1762636232540,-151.0,0.00022978,2]
[393417959,1762636232550,-219.12455009,0.00022978,2]
[393417961,1762636232558,-151.0,0.00022978,2]
[393417963,1762636232567,-151.0,0.00022978,2]
[393417965,1762636232577,-151.15914308,0.00022978,2]
[393417967,1762636232586,-151.0,0.00022978,2]
[393417969,1762636232595,-151.0,0.00022978,2]
[393417971,1762636232604,-500.0,0.00022978,2]
[393417973,1762636232613,-151.0,0.00022978,2]
[393417975,1762636232622,-151.0,0.00022978,2]
[393417977,1762636232631,-191.24671159,0.00022978,2]
[393417979,1762636232640,-253.75808931,0.00022978,2]
[393417981,1762636232649,-164.13386411,0.00022978,2]
[393417983,1762636232657,-151.0,0.00022978,2]
[393417985,1762636232667,-151.0,0.00022978,2]
[393417986,1762636232676,-151.74780477,0.00022978,2]
[393417988,1762636232685,-151.99056464,0.00022978,2]
[393417990,1762636232695,-151.0,0.00022978,2]
[393417992,1762636232704,-151.0,0.00022978,2]
[393417994,1762636232713,-182.77155744,0.00022978,2]
[393417996,1762636232723,-417.59,0.00022988,2]
[393417997,1762636232732,-185.45,0.00023023,10]
[393417998,1762636232742,-116.2006243,0.00023033,2]
[393418007,1762636232821,-34.7993757,0.00023033,2]
[393418009,1762636232830,-151.0,0.00023033,2]
[393418010,1762636232839,-151.0,0.00023033,2]
[393418012,1762636232849,-108.2795116,0.00023033,2]
[393418014,1762636232860,-42.7204884,0.00023033,2]
[393418016,1762636232869,-151.0,0.00023033,2]
[393418018,1762636232878,-151.0,0.00023033,2]
[393418020,1762636232887,-151.0,0.00023033,2]
[393418022,1762636232897,-356.69871959,0.00023033,2]
[393418024,1762636232908,-143.30128041,0.00023033,2]
[393418026,1762636232917,-151.0,0.00023033,2]
[393418028,1762636232927,-151.0,0.00023033,2]
[393418030,1762636232936,-151.0,0.00023033,2]
[393418032,1762636232946,-198.0,0.00023088,2]
[393418034,1762636232955,-198.0,0.00023088,2]
[393418036,1762636232964,-35.29871959,0.00023088,2]
[393418038,1762636232975,-162.70128041,0.00023088,2]
[393418040,1762636232985,-119.64418951,0.00023088,2]
[393418042,1762636232996,-78.35581049,0.00023088,2]
[393418044,1762636233005,-198.0,0.00023088,2]
[393418046,1762636233014,-118.79871959,0.00023088,2]
[393418090,1762636238177,-327.95287954,0.00021641,2]
[393418091,1762636238234,-2193.4165003,0.00021641,2]
[393418092,1762636238247,-2478.63062016,0.00021641,2]
[393418093,1762636238257,-500.0,0.0002186,2]
[393418094,1762636238267,-166.36937984,0.0002186,2]
[393418127,1762636240279,-333.63062016,0.0002186,2]
[393418128,1762636240291,-164.40937984,0.0002186,2]
[393418129,1762636240335,-335.59062016,0.0002186,2]
[393418130,1762636240344,-411.40937984,0.0002186,2]
[393418159,1762636246700,-88.59062016,0.0002186,2]
[393418160,1762636246710,-500.0,0.0002186,2]
[393418161,1762636246719,-52.40937984,0.0002186,2]
[393418162,1762636401209,248.18,0.00032877,120]
[393418164,1762637046624,344.72036,0.00013699,2]
[393418166,1762637177620,458.43821838,0.00032876,120]
[393418215,1762637432399,-344.72036,0.00020187,2]
[393418217,1762637432410,-150.0,0.00020718,2]
[393418219,1762637432419,-457.68340428,0.00021937,5]
[393418221,1762637432429,-103.48988772,0.00022311,2]
[393418270,1762637438376,-6430.96519078,0.00022311,2]
[393418271,1762637438387,-914.4924155,0.00022311,2]
[393418272,1762637438398,-369.654331,0.00022547,2]
[393418273,1762637438407,-177.0,0.00022718,2]
[393418274,1762637438418,-1323.93696244,0.00022902,5]
[393418275,1762637438427,-3296.01794503,0.00023033,2]
[393418276,1762637438437,-264.67501214,0.00023033,2]
[393418277,1762637438447,-476.41502185,0.00023033,2]
[393418278,1762637438457,-846.96003885,0.00023033,2]
[393418279,1762637438467,-416.25175105,0.00023033,2]